[Event "*** SCC Grand Prix: Titled Tuesday Blitz"]
[Site "Chess.com"]
[Date "2020.06.02"]
[Round "5"]
[White "emperor87"]
[Black "Gordima"]
[Result "0-1"]
[WhiteElo "2586"]
[BlackElo "2769"]
[TimeControl "180+1"]
[EndTime "10:56:34 PDT"]
[Termination "Gordima won by resignation"]

1. e4 {[%clk 0:03:00.7]} 1... Nf6 {[%clk 0:03:00.2]} 2. e5 {[%clk 0:02:59.6]}
2... Nd5 {[%clk 0:03:00.6]} 3. d4 {[%clk 0:03:00.2]} 3... d6 {[%clk 0:03:00.9]}
4. Nf3 {[%clk 0:03:00.3]} 4... Bg4 {[%clk 0:03:00.7]} 5. Be2 {[%clk 0:02:59.2]}
5... e6 {[%clk 0:03:01]} 6. O-O {[%clk 0:02:58.8]} 6... Be7 {[%clk 0:03:01.3]}
7. c4 {[%clk 0:02:57]} 7... Nb6 {[%clk 0:03:01.1]} 8. exd6 {[%clk 0:02:56.3]}
8... cxd6 {[%clk 0:03:00.8]} 9. b3 {[%clk 0:02:55.9]} 9... O-O {[%clk
0:02:59.8]} 10. Nc3 {[%clk 0:02:55.9]} 10... Nc6 {[%clk 0:02:56.3]} 11. Be3
{[%clk 0:02:55.7]} 11... d5 {[%clk 0:02:55.4]} 12. c5 {[%clk 0:02:54.9]} 12...
Nc8 {[%clk 0:02:55.6]} 13. Ne5 {[%clk 0:02:47.8]} 13... Nxe5 {[%clk 0:02:31.3]}
14. dxe5 {[%clk 0:02:46.2]} 14... Bf5 {[%clk 0:02:21.1]} 15. Nb5 {[%clk
0:02:36.2]} 15... f6 {[%clk 0:01:54.5]} 16. f4 {[%clk 0:02:34.8]} 16... fxe5
{[%clk 0:01:52.1]} 17. fxe5 {[%clk 0:02:34.5]} 17... Bg5 {[%clk 0:01:50.8]} 18.
Bxg5 {[%clk 0:02:30.1]} 18... Qxg5 {[%clk 0:01:51.7]} 19. Qd4 {[%clk 0:02:29.1]}
19... Ne7 {[%clk 0:01:48.2]} 20. Nd6 {[%clk 0:02:19.1]} 20... Nc6 {[%clk
0:01:47.9]} 21. Qb2 {[%clk 0:02:18.1]} 21... Bh3 {[%clk 0:01:17.1]} 22. Bb5
{[%clk 0:02:06.4]} 22... Nxe5 {[%clk 0:01:14]} 23. Kh1 {[%clk 0:02:06.6]} 23...
Bg4 {[%clk 0:01:07.8]} 24. Rfe1 {[%clk 0:02:05.5]} 24... Nf3 {[%clk 0:01:03.6]}
25. Rf1 {[%clk 0:01:59.9]} 25... Nd2 {[%clk 0:00:58.2]} 26. Rxf8+ {[%clk
0:01:56.6]} 26... Rxf8 {[%clk 0:00:59.1]} 27. Qd4 {[%clk 0:01:56.2]} 27... Nf3
{[%clk 0:00:40]} 28. Qf2 {[%clk 0:01:55.4]} 28... Nxh2 {[%clk 0:00:34.3]} 29.
Qg3 {[%clk 0:01:50.8]} 29... Nf3 {[%clk 0:00:25.7]} 30. gxf3 {[%clk 0:01:50.8]}
30... Bxf3+ {[%clk 0:00:25.3]} 31. Kh2 {[%clk 0:01:49.9]} 31... Qh5+ {[%clk
0:00:24.9]} 32. Qh3 {[%clk 0:01:49.7]} 32... Qe5+ {[%clk 0:00:25.1]} 33. Qg3
{[%clk 0:01:47.6]} 33... Qxa1 {[%clk 0:00:22.1]} 0-1

[Event "*** SCC Grand Prix: Titled Tuesday Blitz"]
[Site "Chess.com"]
[Date "2020.06.02"]
[Round "5"]
[White "DonPreuss"]
[Black "dosto07"]
[Result "1-0"]
[WhiteElo "2232"]
[BlackElo "2099"]
[TimeControl "180+1"]
[EndTime "10:56:46 PDT"]
[Termination "DonPreuss won by checkmate"]

1. d4 {[%clk 0:03:00.9]} 1... d5 {[%clk 0:02:58.7]} 2. e4 {[%clk 0:03:01.1]}
2... dxe4 {[%clk 0:02:58.4]} 3. Nc3 {[%clk 0:03:01.7]} 3... Nf6 {[%clk
0:02:57.7]} 4. f3 {[%clk 0:03:02]} 4... exf3 {[%clk 0:02:54.9]} 5. Nxf3 {[%clk
0:03:02.9]} 5... e6 {[%clk 0:02:53]} 6. Bd3 {[%clk 0:03:02.8]} 6... c5 {[%clk
0:02:50.5]} 7. dxc5 {[%clk 0:03:02.1]} 7... Bxc5 {[%clk 0:02:48.2]} 8. Bg5
{[%clk 0:03:02.7]} 8... Nc6 {[%clk 0:02:44.3]} 9. Qd2 {[%clk 0:03:02.8]} 9...
O-O {[%clk 0:02:40.3]} 10. Qf4 {[%clk 0:02:55.4]} 10... Be7 {[%clk 0:02:24.1]}
11. O-O-O {[%clk 0:02:49.1]} 11... Qa5 {[%clk 0:02:20.8]} 12. Qh4 {[%clk
0:02:46.8]} 12... h6 {[%clk 0:02:16.8]} 13. g4 {[%clk 0:02:23.3]} 13... Nb4
{[%clk 0:02:04.6]} 14. Bxh6 {[%clk 0:02:15.1]} 14... gxh6 {[%clk 0:01:38]} 15.
Qxh6 {[%clk 0:02:11.6]} 15... Rd8 {[%clk 0:01:13.4]} 16. Ng5 {[%clk 0:01:37.3]}
16... Nxd3+ {[%clk 0:00:55]} 17. Rxd3 {[%clk 0:01:36.1]} 17... Rxd3 {[%clk
0:00:52.6]} 18. cxd3 {[%clk 0:01:36.1]} 18... Bd7 {[%clk 0:00:41.7]} 19. Nce4
{[%clk 0:01:30.8]} 19... Rc8+ {[%clk 0:00:31.9]} 20. Kb1 {[%clk 0:01:30.7]}
20... Qe5 {[%clk 0:00:28]} 21. Rf1 {[%clk 0:01:24.5]} 21... Nxg4 {[%clk
0:00:07.2]} 22. Qh7+ {[%clk 0:01:21]} 22... Kf8 {[%clk 0:00:05.5]} 23. Qxf7#
{[%clk 0:01:21.6]} 1-0

[Event "*** SCC Grand Prix: Titled Tuesday Blitz"]
[Site "Chess.com"]
[Date "2020.06.02"]
[Round "5"]
[White "GigaQuparadze"]
[Black "grzechu96"]
[Result "1-0"]
[WhiteElo "2840"]
[BlackElo "2628"]
[TimeControl "180+1"]
[EndTime "10:56:50 PDT"]
[Termination "GigaQuparadze won by resignation"]

1. e4 {[%clk 0:03:00.9]} 1... e5 {[%clk 0:02:57.9]} 2. Nf3 {[%clk 0:03:00.4]}
2... Nc6 {[%clk 0:02:58.4]} 3. Bb5 {[%clk 0:02:59.9]} 3... a6 {[%clk 0:02:58.3]}
4. Ba4 {[%clk 0:02:59.9]} 4... Nf6 {[%clk 0:02:57.9]} 5. Bxc6 {[%clk 0:03:00]}
5... dxc6 {[%clk 0:02:57.7]} 6. d3 {[%clk 0:02:59.9]} 6... Nd7 {[%clk
0:02:57.2]} 7. Nbd2 {[%clk 0:03:00.8]} 7... Bd6 {[%clk 0:02:55.4]} 8. Nc4 {[%clk
0:03:00.7]} 8... f6 {[%clk 0:02:50.5]} 9. Nh4 {[%clk 0:02:59.7]} 9... g6 {[%clk
0:02:49.4]} 10. O-O {[%clk 0:02:56.6]} 10... Nf8 {[%clk 0:02:47.8]} 11. Bh6
{[%clk 0:02:55.9]} 11... Ne6 {[%clk 0:02:46.4]} 12. c3 {[%clk 0:02:55.5]} 12...
Qe7 {[%clk 0:02:40.4]} 13. d4 {[%clk 0:02:54.6]} 13... Bd7 {[%clk 0:02:35]} 14.
dxe5 {[%clk 0:02:52.2]} 14... Bxe5 {[%clk 0:02:35.1]} 15. Nxe5 {[%clk
0:02:51.4]} 15... fxe5 {[%clk 0:02:35.7]} 16. Nf3 {[%clk 0:02:51.4]} 16... Nf4
{[%clk 0:02:28.1]} 17. Bg5 {[%clk 0:02:46.4]} 17... Qe6 {[%clk 0:02:24]} 18. Qb3
{[%clk 0:02:36.6]} 18... Qg4 {[%clk 0:02:16.3]} 19. Bxf4 {[%clk 0:02:34]} 19...
Qxf4 {[%clk 0:02:12.7]} 20. Qxb7 {[%clk 0:02:30.4]} 20... O-O {[%clk 0:02:12.5]}
21. Qxc7 {[%clk 0:02:29.5]} 21... Bg4 {[%clk 0:01:52.7]} 22. Qxe5 {[%clk
0:02:15]} 22... Bxf3 {[%clk 0:01:50.5]} 23. Qxf4 {[%clk 0:02:14.5]} 23... Rxf4
{[%clk 0:01:51.4]} 24. gxf3 {[%clk 0:02:14.4]} 24... Rxf3 {[%clk 0:01:52.3]} 25.
Rad1 {[%clk 0:02:14.2]} 25... Re8 {[%clk 0:01:44.6]} 26. Rfe1 {[%clk 0:02:11.3]}
26... Rf4 {[%clk 0:01:43.3]} 27. Rd4 {[%clk 0:02:10]} 27... Re5 {[%clk
0:01:40.3]} 28. Re3 {[%clk 0:02:08.5]} 28... Rg5+ {[%clk 0:01:32.6]} 29. Rg3
{[%clk 0:02:07.6]} 29... Re5 {[%clk 0:01:32.4]} 30. f3 {[%clk 0:02:07.7]} 30...
Kg7 {[%clk 0:01:29.9]} 31. Rd7+ {[%clk 0:02:05.6]} 31... Rf7 {[%clk 0:01:25.3]}
32. Rxf7+ {[%clk 0:02:03.8]} 32... Kxf7 {[%clk 0:01:26.2]} 33. Rg2 {[%clk
0:02:03.3]} 33... g5 {[%clk 0:01:19.2]} 34. Kf2 {[%clk 0:01:54.3]} 34... h5
{[%clk 0:01:18.8]} 35. Ke3 {[%clk 0:01:54.4]} 35... Ke7 {[%clk 0:01:15.4]} 36.
Kd4 {[%clk 0:01:51.3]} 36... Ke6 {[%clk 0:01:08.6]} 37. b4 {[%clk 0:01:51.2]}
37... Kf6 {[%clk 0:01:02.1]} 38. a3 {[%clk 0:01:48.5]} 38... Re7 {[%clk
0:01:02.2]} 39. Ke3 {[%clk 0:01:44.4]} 39... Re5 {[%clk 0:00:58.9]} 40. Rd2
{[%clk 0:01:44.1]} 40... Ke7 {[%clk 0:00:59.2]} 41. h4 {[%clk 0:01:42.3]} 41...
gxh4 {[%clk 0:00:51.9]} 42. f4 {[%clk 0:01:42.4]} 42... Re6 {[%clk 0:00:46.1]}
43. f5 {[%clk 0:01:41.9]} 43... Rd6 {[%clk 0:00:45.2]} 44. Rxd6 {[%clk
0:01:40.9]} 44... Kxd6 {[%clk 0:00:46.1]} 45. Kf3 {[%clk 0:01:41.1]} 1-0

[Event "*** SCC Grand Prix: Titled Tuesday Blitz"]
[Site "Chess.com"]
[Date "2020.06.02"]
[Round "5"]
[White "Irishchessman16"]
[Black "Carnivoras"]
[Result "0-1"]
[WhiteElo "2417"]
[BlackElo "2612"]
[TimeControl "180+1"]
[EndTime "10:56:50 PDT"]
[Termination "Carnivoras won by resignation"]

1. e4 {[%clk 0:03:00.9]} 1... e5 {[%clk 0:02:59.6]} 2. Nf3 {[%clk 0:03:00.5]}
2... Nc6 {[%clk 0:03:00.2]} 3. d4 {[%clk 0:02:57.3]} 3... exd4 {[%clk
0:02:59.4]} 4. Nxd4 {[%clk 0:02:58.2]} 4... Nf6 {[%clk 0:02:59.3]} 5. Nxc6
{[%clk 0:02:57.2]} 5... bxc6 {[%clk 0:03:00.2]} 6. e5 {[%clk 0:02:57.4]} 6...
Nd5 {[%clk 0:02:56.3]} 7. c4 {[%clk 0:02:54.1]} 7... Qe7 {[%clk 0:02:56.6]} 8.
cxd5 {[%clk 0:02:52.8]} 8... Qxe5+ {[%clk 0:02:53.4]} 9. Be2 {[%clk 0:02:52.6]}
9... cxd5 {[%clk 0:02:53.2]} 10. O-O {[%clk 0:02:51.8]} 10... Be7 {[%clk
0:02:51.3]} 11. Re1 {[%clk 0:02:44.6]} 11... c6 {[%clk 0:02:48.4]} 12. Bd3
{[%clk 0:02:38.7]} 12... Qf6 {[%clk 0:02:40.5]} 13. Qe2 {[%clk 0:02:35.2]} 13...
d6 {[%clk 0:02:40.4]} 14. b3 {[%clk 0:02:25.1]} 14... Be6 {[%clk 0:02:30.8]} 15.
Bb2 {[%clk 0:02:24.2]} 15... Qh6 {[%clk 0:02:30.7]} 16. Na3 {[%clk 0:02:19.1]}
16... O-O {[%clk 0:02:29.5]} 17. Nc2 {[%clk 0:02:18.2]} 17... c5 {[%clk
0:02:20.9]} 18. Ne3 {[%clk 0:02:16.7]} 18... Bf6 {[%clk 0:02:14.4]} 19. Rad1
{[%clk 0:01:42]} 19... Bxb2 {[%clk 0:01:45.3]} 20. Qxb2 {[%clk 0:01:41.2]} 20...
d4 {[%clk 0:01:43.6]} 21. Nf5 {[%clk 0:01:34]} 21... Bxf5 {[%clk 0:01:37.3]} 22.
Bxf5 {[%clk 0:01:33.8]} 22... g6 {[%clk 0:01:36.4]} 23. Be4 {[%clk 0:01:33.2]}
23... Rae8 {[%clk 0:01:33.4]} 24. g3 {[%clk 0:01:31.7]} 24... Re7 {[%clk
0:01:32]} 25. Bd5 {[%clk 0:01:28.5]} 25... Rfe8 {[%clk 0:01:32]} 26. Rxe7 {[%clk
0:01:16]} 26... Rxe7 {[%clk 0:01:32.9]} 27. f4 {[%clk 0:01:15.3]} 27... Qh5
{[%clk 0:01:30.7]} 28. Rxd4 {[%clk 0:00:45.7]} 28... cxd4 {[%clk 0:01:25.3]} 29.
Qxd4 {[%clk 0:00:46.6]} 29... Re1+ {[%clk 0:01:21.7]} 30. Kg2 {[%clk 0:00:46.4]}
30... Re2+ {[%clk 0:01:21.6]} 31. Kf1 {[%clk 0:00:45.6]} 31... Rxh2 {[%clk
0:01:17]} 0-1

[Event "*** SCC Grand Prix: Titled Tuesday Blitz"]
[Site "Chess.com"]
[Date "2020.06.02"]
[Round "5"]
[White "TrenerChos"]
[Black "nadirsm"]
[Result "1-0"]
[WhiteElo "2354"]
[BlackElo "2152"]
[TimeControl "180+1"]
[EndTime "10:56:54 PDT"]
[Termination "TrenerChos won on time"]

1. e4 {[%clk 0:03:00.9]} 1... c6 {[%clk 0:02:58.8]} 2. d4 {[%clk 0:03:00.3]}
2... d5 {[%clk 0:02:59.7]} 3. e5 {[%clk 0:03:00.9]} 3... Bf5 {[%clk 0:02:59.5]}
4. Nf3 {[%clk 0:03:01.4]} 4... e6 {[%clk 0:02:59.3]} 5. Be2 {[%clk 0:03:02]}
5... c5 {[%clk 0:02:57.1]} 6. O-O {[%clk 0:03:01.7]} 6... Nc6 {[%clk 0:02:55.7]}
7. c4 {[%clk 0:03:01.6]} 7... dxc4 {[%clk 0:02:32.3]} 8. Na3 {[%clk 0:03:00.3]}
8... cxd4 {[%clk 0:02:16.6]} 9. Bxc4 {[%clk 0:02:45.7]} 9... Bxa3 {[%clk
0:02:04.9]} 10. bxa3 {[%clk 0:02:44.7]} 10... Nge7 {[%clk 0:02:05.8]} 11. a4
{[%clk 0:02:32.2]} 11... O-O {[%clk 0:02:02.4]} 12. Ba3 {[%clk 0:02:31.9]} 12...
Re8 {[%clk 0:01:23.5]} 13. Re1 {[%clk 0:02:23.7]} 13... Rc8 {[%clk 0:01:19.6]}
14. Bd6 {[%clk 0:02:14.4]} 14... Qa5 {[%clk 0:01:00.2]} 15. Bb3 {[%clk
0:02:09.4]} 15... d3 {[%clk 0:00:53.2]} 16. Nh4 {[%clk 0:02:06.2]} 16... d2
{[%clk 0:00:32.8]} 17. Re3 {[%clk 0:02:05.6]} 17... Bg6 {[%clk 0:00:25]} 18. g3
{[%clk 0:01:41.2]} 18... Nd4 {[%clk 0:00:18.8]} 19. Nxg6 {[%clk 0:01:39.3]}
19... Nxg6 {[%clk 0:00:14.7]} 20. h4 {[%clk 0:01:25.7]} 20... Nxb3 {[%clk
0:00:05.4]} 21. axb3 {[%clk 0:01:24.7]} 21... Ne7 {[%clk 0:00:02.4]} 22. Rd3
{[%clk 0:01:23.7]} 1-0

[Event "*** SCC Grand Prix: Titled Tuesday Blitz"]
[Site "Chess.com"]
[Date "2020.06.02"]
[Round "5"]
[White "Fortitudine"]
[Black "andy_rekt"]
[Result "0-1"]
[WhiteElo "2296"]
[BlackElo "2045"]
[TimeControl "180+1"]
[EndTime "10:56:54 PDT"]
[Termination "andy_rekt won by resignation"]

1. c4 {[%clk 0:03:00.9]} 1... e5 {[%clk 0:02:59.5]} 2. g3 {[%clk 0:03:00.5]}
2... Nf6 {[%clk 0:02:59.8]} 3. Bg2 {[%clk 0:02:59.3]} 3... c6 {[%clk 0:03:00]}
4. d4 {[%clk 0:02:58.6]} 4... e4 {[%clk 0:02:59.6]} 5. Nc3 {[%clk 0:02:55.1]}
5... d5 {[%clk 0:02:58.8]} 6. Bg5 {[%clk 0:02:55.4]} 6... Bb4 {[%clk 0:02:57.2]}
7. Qb3 {[%clk 0:02:43.7]} 7... Bxc3+ {[%clk 0:02:50.9]} 8. Qxc3 {[%clk
0:02:44.6]} 8... Nbd7 {[%clk 0:02:45]} 9. cxd5 {[%clk 0:02:32.7]} 9... cxd5
{[%clk 0:02:44.2]} 10. Nh3 {[%clk 0:02:20.5]} 10... h6 {[%clk 0:02:41.2]} 11.
Bxf6 {[%clk 0:02:17]} 11... Nxf6 {[%clk 0:02:40.6]} 12. Rc1 {[%clk 0:02:10.1]}
12... O-O {[%clk 0:02:38.6]} 13. O-O {[%clk 0:02:00.4]} 13... Bg4 {[%clk
0:02:33.6]} 14. f3 {[%clk 0:01:55.8]} 14... exf3 {[%clk 0:02:24.2]} 15. exf3
{[%clk 0:01:52]} 15... Bf5 {[%clk 0:02:24.2]} 16. Qc7 {[%clk 0:01:41]} 16... Qe8
{[%clk 0:02:12.3]} 17. Rfe1 {[%clk 0:01:33.4]} 17... Qb5 {[%clk 0:02:11.1]} 18.
b3 {[%clk 0:00:59.1]} 18... Rfe8 {[%clk 0:02:04.3]} 19. Nf4 {[%clk 0:00:53]}
19... g5 {[%clk 0:01:57.7]} 20. Qd6 {[%clk 0:00:20.4]} 20... Kg7 {[%clk
0:01:50.2]} 21. Nh3 {[%clk 0:00:17.9]} 21... Qa5 {[%clk 0:01:44.5]} 22. Rxe8
{[%clk 0:00:15.1]} 22... Rxe8 {[%clk 0:01:45.4]} 23. Nf2 {[%clk 0:00:13.4]}
23... Re2 {[%clk 0:01:32.6]} 24. Ng4 {[%clk 0:00:09.7]} 24... Bxg4 {[%clk
0:01:27.2]} 25. fxg4 {[%clk 0:00:10.1]} 25... Rxg2+ {[%clk 0:01:26.2]} 26. Kxg2
{[%clk 0:00:07.9]} 26... Qd2+ {[%clk 0:01:26]} 0-1

[Event "*** SCC Grand Prix: Titled Tuesday Blitz"]
[Site "Chess.com"]
[Date "2020.06.02"]
[Round "5"]
[White "szefru"]
[Black "Majesth"]
[Result "0-1"]
[WhiteElo "2125"]
[BlackElo "2451"]
[TimeControl "180+1"]
[EndTime "10:56:59 PDT"]
[Termination "Majesth won by resignation"]

1. e4 {[%clk 0:03:00.9]} 1... g6 {[%clk 0:03:00.2]} 2. d4 {[%clk 0:02:53.2]}
2... Bg7 {[%clk 0:03:00.6]} 3. Nc3 {[%clk 0:02:53.3]} 3... d6 {[%clk 0:03:01.2]}
4. Be3 {[%clk 0:02:53.7]} 4... a6 {[%clk 0:03:01.6]} 5. Qd2 {[%clk 0:02:54.2]}
5... Nd7 {[%clk 0:03:02.1]} 6. O-O-O {[%clk 0:02:54.1]} 6... b5 {[%clk
0:03:02.5]} 7. f3 {[%clk 0:02:54.4]} 7... Bb7 {[%clk 0:03:01.9]} 8. h4 {[%clk
0:02:53.9]} 8... h5 {[%clk 0:03:02.4]} 9. g4 {[%clk 0:02:53.3]} 9... hxg4 {[%clk
0:03:01.1]} 10. fxg4 {[%clk 0:02:54.2]} 10... Ngf6 {[%clk 0:02:41.3]} 11. Bg2
{[%clk 0:02:37.9]} 11... Nxg4 {[%clk 0:02:41]} 12. Bg5 {[%clk 0:02:37.3]} 12...
c5 {[%clk 0:02:22.1]} 13. dxc5 {[%clk 0:02:30.6]} 13... Nxc5 {[%clk 0:02:23]}
14. Nd5 {[%clk 0:02:31]} 14... Bxd5 {[%clk 0:02:06.5]} 15. exd5 {[%clk
0:02:28.4]} 15... Na4 {[%clk 0:01:42.1]} 16. b3 {[%clk 0:02:14.4]} 16... Nc3
{[%clk 0:01:25.4]} 17. Re1 {[%clk 0:02:07.3]} 17... Nxa2+ {[%clk 0:01:17.7]} 18.
Kb1 {[%clk 0:02:07]} 18... Nc3+ {[%clk 0:01:09.3]} 19. Kc1 {[%clk 0:02:02.6]}
19... Qa5 {[%clk 0:01:02.2]} 20. Rxe7+ {[%clk 0:02:01.8]} 20... Kf8 {[%clk
0:01:02.4]} 21. Qe1 {[%clk 0:01:22.2]} 21... Qa1+ {[%clk 0:00:27.2]} 22. Kd2
{[%clk 0:01:22]} 22... Nb1+ {[%clk 0:00:27]} 23. Ke2 {[%clk 0:01:12.8]} 23... f6
{[%clk 0:00:26.4]} 24. Rxg7 {[%clk 0:01:07.1]} 24... Re8+ {[%clk 0:00:20.9]} 0-1

[Event "*** SCC Grand Prix: Titled Tuesday Blitz"]
[Site "Chess.com"]
[Date "2020.06.02"]
[Round "5"]
[White "ehrenfeld"]
[Black "ElGasanov"]
[Result "0-1"]
[WhiteElo "2437"]
[BlackElo "2738"]
[TimeControl "180+1"]
[EndTime "10:57:02 PDT"]
[Termination "ElGasanov won on time"]

1. e4 {[%clk 0:02:44]} 1... c5 {[%clk 0:02:58.8]} 2. d3 {[%clk 0:02:43.9]} 2...
Nc6 {[%clk 0:02:58.1]} 3. f4 {[%clk 0:02:44]} 3... Nf6 {[%clk 0:02:56.7]} 4. Nf3
{[%clk 0:02:44.9]} 4... d5 {[%clk 0:02:55.3]} 5. e5 {[%clk 0:02:44]} 5... Ng4
{[%clk 0:02:53.2]} 6. h3 {[%clk 0:02:40.9]} 6... Nh6 {[%clk 0:02:53.6]} 7. g4
{[%clk 0:02:41]} 7... Ng8 {[%clk 0:02:51.3]} 8. Bg2 {[%clk 0:02:38.7]} 8... h5
{[%clk 0:02:51.5]} 9. gxh5 {[%clk 0:02:07]} 9... Rxh5 {[%clk 0:02:43.7]} 10. Nc3
{[%clk 0:02:00.3]} 10... e6 {[%clk 0:02:30.3]} 11. Ne2 {[%clk 0:01:56.1]} 11...
Rh8 {[%clk 0:02:26.1]} 12. Be3 {[%clk 0:01:52.7]} 12... Nh6 {[%clk 0:02:24.9]}
13. Qd2 {[%clk 0:01:49]} 13... Nf5 {[%clk 0:02:24]} 14. Bf2 {[%clk 0:01:49]}
14... b6 {[%clk 0:02:12.3]} 15. c4 {[%clk 0:01:45.3]} 15... dxc4 {[%clk
0:02:08.1]} 16. dxc4 {[%clk 0:01:44.6]} 16... Qxd2+ {[%clk 0:02:08.4]} 17. Kxd2
{[%clk 0:01:44.7]} 17... Bb7 {[%clk 0:02:07.5]} 18. Rhg1 {[%clk 0:01:40.9]}
18... O-O-O+ {[%clk 0:02:04.5]} 19. Kc3 {[%clk 0:01:21.6]} 19... Nb4 {[%clk
0:02:04.7]} 20. Rgd1 {[%clk 0:00:19.9]} 20... Nxa2+ {[%clk 0:01:26.2]} 21. Kb3
{[%clk 0:00:18.2]} 21... Rxd1 {[%clk 0:01:23.7]} 22. Rxd1 {[%clk 0:00:17.4]}
22... Nb4 {[%clk 0:01:24.3]} 23. Rh1 {[%clk 0:00:07.6]} 23... Be7 {[%clk
0:01:21.7]} 24. Nc3 {[%clk 0:00:04.4]} 24... Nd3 {[%clk 0:01:18.5]} 0-1

[Event "*** SCC Grand Prix: Titled Tuesday Blitz"]
[Site "Chess.com"]
[Date "2020.06.02"]
[Round "5"]
[White "Lubov_Gordyk"]
[Black "eightbyeightchess"]
[Result "1-0"]
[WhiteElo "2580"]
[BlackElo "2401"]
[TimeControl "180+1"]
[EndTime "10:57:03 PDT"]
[Termination "Lubov_Gordyk won by resignation"]

1. e4 {[%clk 0:03:00.9]} 1... e6 {[%clk 0:02:52.8]} 2. d3 {[%clk 0:03:00.2]}
2... d5 {[%clk 0:02:51.9]} 3. Be2 {[%clk 0:03:00.4]} 3... Nf6 {[%clk 0:02:49]}
4. e5 {[%clk 0:03:00.2]} 4... Nfd7 {[%clk 0:02:48.8]} 5. f4 {[%clk 0:03:00.6]}
5... c5 {[%clk 0:02:47.9]} 6. Nf3 {[%clk 0:03:00.8]} 6... Nc6 {[%clk 0:02:48.2]}
7. O-O {[%clk 0:03:00.6]} 7... f6 {[%clk 0:02:48.5]} 8. c4 {[%clk 0:03:01]} 8...
fxe5 {[%clk 0:02:42.1]} 9. cxd5 {[%clk 0:02:54.7]} 9... exd5 {[%clk 0:02:38]}
10. Nxe5 {[%clk 0:02:53.9]} 10... Ndxe5 {[%clk 0:02:38.9]} 11. fxe5 {[%clk
0:02:54.1]} 11... Nxe5 {[%clk 0:02:37.5]} 12. d4 {[%clk 0:02:54.3]} 12... cxd4
{[%clk 0:02:19.4]} 13. Qxd4 {[%clk 0:02:48.1]} 13... Qb6 {[%clk 0:02:18.3]} 14.
Be3 {[%clk 0:02:42.7]} 14... Qxd4 {[%clk 0:02:16.2]} 15. Bxd4 {[%clk 0:02:42.9]}
15... Nc6 {[%clk 0:01:52.2]} 16. Bh5+ {[%clk 0:02:34.2]} 16... Kd8 {[%clk
0:01:45.5]} 17. Bf2 {[%clk 0:02:24.5]} 17... Be6 {[%clk 0:01:23.2]} 18. Nc3
{[%clk 0:02:24.4]} 18... Kc7 {[%clk 0:01:14.6]} 19. Rfd1 {[%clk 0:02:09.7]}
19... Rd8 {[%clk 0:01:03.3]} 20. Nb5+ {[%clk 0:02:08.5]} 20... Kb8 {[%clk
0:00:46.6]} 21. Bg3+ {[%clk 0:02:06.9]} 21... Kc8 {[%clk 0:00:47.1]} 22. Rac1
{[%clk 0:02:06.5]} 22... a6 {[%clk 0:00:44.8]} 23. Nc7 {[%clk 0:01:52.8]} 23...
Bf5 {[%clk 0:00:33.2]} 24. Nxd5 {[%clk 0:01:47.3]} 24... Rxd5 {[%clk 0:00:31.3]}
25. Rxd5 {[%clk 0:01:45.2]} 25... Be6 {[%clk 0:00:32]} 26. Rdd1 {[%clk
0:01:32.1]} 26... Bb4 {[%clk 0:00:21.7]} 27. Bf3 {[%clk 0:01:26.6]} 27... Bd7
{[%clk 0:00:21.4]} 28. a3 {[%clk 0:01:25]} 28... Ba5 {[%clk 0:00:21.5]} 29. b4
{[%clk 0:01:24.1]} 29... Bc7 {[%clk 0:00:20.5]} 30. Bxc7 {[%clk 0:01:23]} 30...
Kxc7 {[%clk 0:00:21.4]} 31. a4 {[%clk 0:01:17.8]} 1-0

[Event "*** SCC Grand Prix: Titled Tuesday Blitz"]
[Site "Chess.com"]
[Date "2020.06.02"]
[Round "5"]
[White "ega2006"]
[Black "Girkassa"]
[Result "0-1"]
[WhiteElo "2378"]
[BlackElo "2552"]
[TimeControl "180+1"]
[EndTime "10:57:08 PDT"]
[Termination "Girkassa won by resignation"]

1. e4 {[%clk 0:03:00.9]} 1... e5 {[%clk 0:02:59.8]} 2. Nf3 {[%clk 0:03:01.3]}
2... Nc6 {[%clk 0:03:00]} 3. Bc4 {[%clk 0:03:01.8]} 3... Nf6 {[%clk 0:02:59.5]}
4. d3 {[%clk 0:03:01.5]} 4... Be7 {[%clk 0:02:58.9]} 5. O-O {[%clk 0:03:01.8]}
5... O-O {[%clk 0:02:59]} 6. c3 {[%clk 0:03:02.2]} 6... d5 {[%clk 0:02:56.7]} 7.
exd5 {[%clk 0:03:03.1]} 7... Nxd5 {[%clk 0:02:56.9]} 8. Re1 {[%clk 0:03:03.5]}
8... Bg4 {[%clk 0:02:56.3]} 9. h3 {[%clk 0:03:03]} 9... Bxf3 {[%clk 0:02:53.7]}
10. Qxf3 {[%clk 0:03:02.4]} 10... Nb6 {[%clk 0:02:53.8]} 11. Bb5 {[%clk
0:02:58.9]} 11... Qd6 {[%clk 0:02:50.8]} 12. Nd2 {[%clk 0:02:56.3]} 12... Rad8
{[%clk 0:02:44]} 13. Ne4 {[%clk 0:02:53.5]} 13... Qg6 {[%clk 0:02:40.9]} 14. Be3
{[%clk 0:02:16.5]} 14... Nd5 {[%clk 0:02:34.9]} 15. Rad1 {[%clk 0:02:11.7]}
15... f5 {[%clk 0:02:27.9]} 16. Nc5 {[%clk 0:00:22.9]} 16... f4 {[%clk
0:02:15.2]} 17. Bd4 {[%clk 0:00:22.3]} 17... exd4 {[%clk 0:01:37.9]} 18. Ne6
{[%clk 0:00:21.4]} 18... dxc3 {[%clk 0:01:37.3]} 19. Nxf8 {[%clk 0:00:16.2]}
19... Kxf8 {[%clk 0:01:18.3]} 20. bxc3 {[%clk 0:00:10.1]} 20... Nxc3 {[%clk
0:01:15.6]} 21. Qxf4+ {[%clk 0:00:09.1]} 21... Qf6 {[%clk 0:01:04.2]} 0-1